[Event "Catalan Youth-ch 2020"]
[Site "Salou"]
[Date "2020.09.07"]
[Round "5.3"]
[White "Ano Pla, Gerard"]
[Black "Lambert Pont, Michael"]
[Result "1-0"]
[ECO "A36"]
[WhiteElo "1993"]
[BlackElo "1670"]
[Annotator "ChessBase"]
[PlyCount "99"]
[EventDate "2020.09.07"]
[EventType "swiss"]
[EventCountry "ESP"]
[SourceTitle "playchess.com"]
[Source "ChessBase"]
[SourceQuality "1"]
[TimeControl "5400+30"]

1. c4 {[%emt 0:00:00]} Nf6 {[%emt 0:00:42]} 2. g3 {[%emt 0:00:00]} c5 {[%emt 0:01:13]} 3. Bg2 {[%emt 0:00:00]} Nc6 {[%emt 0:00:51]} 4. d3 {[%emt 0:00:32]} g6 {[%emt 0:01:10]} 5. e4 {[%emt 0:00:20]} Bg7 {[%emt 0:00:33]} 6. Ne2 {[%emt 0:00:13]} d6 {[%emt 0:00:52]} 7. O-O {[%emt 0:00:07]} O-O {[%emt 0:00:10]} 8. Nbc3 {[%emt 0:00:24]} Bd7 {[%emt 0:02:03]} 9. h3 {[%emt 0:02:58]} a6 {[%emt 0:01:51]} 10. a4 {[%emt 0:01:58]} Rb8 {[%emt 0:01:00]} 11. Be3 {[%emt 0:01:31]} e5 {[%emt 0:05:24]} 12. Bg5 {[%emt 0:10:03]} Ne7 {[%emt 0:02:17]} 13. f4 {[%emt 0:03:33]} Ne8 {[%emt 0:06:55]} 14. Bxe7 {[%emt 0:13:36]} Qxe7 {[%emt 0:01:25]} 15. Nd5 {[%emt 0:03:10]} Qd8 {[%emt 0:00:39]} 16. f5 {[%emt 0:11:09]} Nf6 {[%emt 0:06:38]} 17. Nec3 {[%emt 0:04:11]} Bc6 {[%emt 0:04:29]} 18. g4 {[%emt 0:02:31]} Bxd5 {[%emt 0:02:54]} 19. exd5 {[%emt 0:01:45]} h6 {[%emt 0:04:26]} 20. Be4 {[%emt 0:03:59]} g5 {[%emt 0:02:23]} 21. Ra3 {[%emt 0:01:01]} Qd7 {[%emt 0:09:50]} 22. Rb3 {[%emt 0:01:42]} b6 {[%emt 0:01:02]} 23. Kg2 {[%emt 0:00:58]} Rb7 {[%emt 0:00:48]} 24. Rh1 {[%emt 0:01:11]} Ne8 {[%emt 0:00:39]} 25. f6 {[%emt 0:01:43]} Bxf6 {[%emt 0:03:49]} 26. Qf3 {[%emt 0:02:33]} Be7 {[%emt 0:05:22]} 27. Ra1 {[%emt 0:07:42]} Ng7 {[%emt 0:00:51]} 28. Bf5 {[%emt 0:00:49]} Nxf5 {[%emt 0:03:28]} 29. gxf5 {[%emt 0:00:20]} Kg7 {[%emt 0:03:10]} 30. Rf1 {[%emt 0:01:02]} Bf6 {[%emt 0:02:59]} 31. Ne4 {[%emt 0:07:27]} Rfb8 {[%emt 0:04:33]} 32. h4 {[%emt 0:02:28]} Qe7 {[%emt 0:02:57]} 33. hxg5 {[%emt 0:00:11]} hxg5 {[%emt 0:01:22]} 34. Qg4 {[%emt 0:00:32]} Kf8 {[%emt 0:04:07]} 35. Rh1 {[%emt 0:02:04]} b5 {[%emt 0:10:35]} 36. cxb5 {[%emt 0:03:45]} axb5 {[%emt 0:01:17]} 37. Rh6 {[%emt 0:00:27]} Kg7 {[%emt 0:01:49]} 38. Rxf6 {[%emt 0:00:47]} Qxf6 {[%emt 0:00:00]} 39. Nxf6 {[%emt 0:00:10]} Kxf6 {[%emt 0:00:02]} 40. a5 {[%emt 0:01:05]} b4 {[%emt 0:01:00]} 41. d4 {[%emt 0:00:31]} cxd4 {[%emt 0:01:29]} 42. Rh3 {[%emt 0:00:16]} Rg8 {[%emt 0:00:56]} 43. Rh6+ {[%emt 0:00:12]} Ke7 {[%emt 0:00:07]} 44. f6+ {[%emt 0:01:37]} Kd8 {[%emt 0:00:30]} 45. a6 {[%emt 0:00:14]} Rb6 {[%emt 0:01:18]} 46. Qe2 {[%emt 0:00:23]} Kc7 {[%emt 0:00:14]} 47. Rh7 {[%emt 0:00:35]} Rf8 {[%emt 0:00:35]} 48. Qc4+ {[%emt 0:00:10]} Kb8 {[%emt 0:00:42]} 49. Kf3 {[%emt 0:01:13]} Rc8 {[%emt 0:00:28]} 50. a7+ {[%emt 0:00:09]} 1-0

[Event "Catalan Youth-ch 2020"]
[Site "Salou"]
[Date "2020.09.07"]
[Round "5.4"]
[White "Castillo Dalmau, Albert"]
[Black "Ros Alonso, Joana"]
[Result "1-0"]
[ECO "E60"]
[WhiteElo "2204"]
[BlackElo "2014"]
[Annotator "ChessBase"]
[PlyCount "117"]
[EventDate "2020.09.07"]
[EventType "swiss"]
[EventCountry "ESP"]
[SourceTitle "playchess.com"]
[Source "ChessBase"]
[SourceQuality "1"]
[TimeControl "5400+30"]

1. Nf3 {[%emt 0:00:00]} Nf6 {[%emt 0:00:00]} 2. c4 {[%emt 0:00:00]} g6 {[%emt 0:00:00]} 3. b3 {[%emt 0:00:00]} Bg7 {[%emt 0:00:00]} 4. Bb2 {[%emt 0:00:00]} d6 {[%emt 0:01:45]} 5. d4 {[%emt 0:00:10]} d5 {[%emt 0:02:53]} 6. cxd5 {[%emt 0:02:24]} Nxd5 {[%emt 0:00:59]} 7. e4 {[%emt 0:01:14]} Nb6 {[%emt 0:00:23]} 8. Bb5+ {[%emt 0:12:06]} c6 {[%emt 0:05:37]} 9. Be2 {[%emt 0:00:00]} c5 {[%emt 0:01:33]} 10. Qd2 {[%emt 0:06:02]} O-O {[%emt 0:06:11]} 11. O-O {[%emt 0:00:00]} Bg4 {[%emt 0:09:34]} 12. d5 {[%emt 0:00:00]} Bxf3 {[%emt 0:06:38]} 13. Bxf3 {[%emt 0:00:00]} e5 {[%emt 0:01:11]} 14. Rd1 {[%emt 0:00:00]} Qd6 {[%emt 0:12:58]} 15. Na3 {[%emt 0:00:00]} a6 {[%emt 0:00:09]} 16. Rac1 {[%emt 0:03:26]} N8d7 {[%emt 0:00:51]} 17. Nc4 {[%emt 0:09:34]} Nxc4 {[%emt 0:00:31]} 18. Rxc4 {[%emt 0:00:12]} h5 {[%emt 0:06:48]} 19. b4 {[%emt 0:01:28]} Rfc8 {[%emt 0:04:19]} 20. bxc5 {[%emt 0:03:52]} Nxc5 {[%emt 0:01:06]} 21. Rdc1 {[%emt 0:10:00]} Rc7 {[%emt 0:03:04]} 22. Qe3 {[%emt 0:06:09]} Rac8 {[%emt 0:01:40]} 23. Ba3 {[%emt 0:02:24]} Bf8 {[%emt 0:01:35]} 24. g4 {[%emt 0:03:50]} b6 {[%emt 0:13:48]} 25. gxh5 {[%emt 0:01:58]} gxh5 {[%emt 0:00:12]} 26. Bxh5 {[%emt 0:02:44]} Bh6 {[%emt 0:01:45]} 27. Qg3+ {[%emt 0:00:18]} Kh8 {[%emt 0:08:34]} 28. Bxc5 {[%emt 0:09:59]} Rxc5 {[%emt 0:00:00]} 29. Rxc5 {[%emt 0:00:07]} bxc5 {[%emt 0:00:00]} 30. Rc4 {[%emt 0:02:05]} Rg8 {[%emt 0:00:33]} 31. Bg4 {[%emt 0:00:01]} Bf4 {[%emt 0:03:09]} 32. Qh4+ {[%emt 0:01:29]} Kg7 {[%emt 0:00:09]} 33. Bh3 {[%emt 0:03:37]} Kf8+ {[%emt 0:02:01]} 34. Kh1 {[%emt 0:05:15]} Qb6 {[%emt 0:01:17]} 35. Bf1 {[%emt 0:00:29]} Rg5 {[%emt 0:03:48]} 36. Qh3 {[%emt 0:02:46]} Qg6 {[%emt 0:00:42]} 37. Bg2 {[%emt 0:00:07]} Kg7 {[%emt 0:00:47]} 38. Qf3 {[%emt 0:00:50]} Qb6 {[%emt 0:00:29]} 39. Qd1 {[%emt 0:00:48]} Qg6 {[%emt 0:01:51]} 40. Qf1 {[%emt 0:00:01]} Rh5 {[%emt 0:00:24]} 41. h3 {[%emt 0:00:05]} Qb6 {[%emt 0:00:52]} 42. Rc3 {[%emt 0:01:06]} Qa5 {[%emt 0:00:10]} 43. Qc4 {[%emt 0:00:33]} Rg5 {[%emt 0:00:19]} 44. Bf3 {[%emt 0:01:36]} Bd2 {[%emt 0:00:40]} 45. Rc2 {[%emt 0:00:14]} Bb4 {[%emt 0:00:32]} 46. Bg4 {[%emt 0:00:27]} Qa3 {[%emt 0:00:26]} 47. Kg2 {[%emt 0:00:24]} Rg6 {[%emt 0:00:35]} 48. Qe2 {[%emt 0:00:41]} Qa5 {[%emt 0:00:14]} 49. Qf3 {[%emt 0:00:23]} Qd8 {[%emt 0:00:21]} 50. a3 {[%emt 0:00:14]} Be1 {[%emt 0:00:44]} 51. Rxc5 {[%emt 0:00:45]} Qd6 {[%emt 0:00:49]} 52. Rc6 {[%emt 0:00:10]} Qe7 {[%emt 0:00:13]} 53. Rxg6+ {[%emt 0:00:34]} fxg6 {[%emt 0:00:11]} 54. Qe2 {[%emt 0:00:14]} Ba5 {[%emt 0:00:31]} 55. Qxa6 {[%emt 0:00:11]} Qxa3 {[%emt 0:00:20]} 56. d6 {[%emt 0:01:36]} Bb4 {[%emt 0:00:09]} 57. Qb7+ {[%emt 0:00:21]} Kh6 {[%emt 0:00:18]} 58. d7 {[%emt 0:00:09]} Be7 {[%emt 0:00:06]} 59. Qd5 {[%emt 0:00:24]} 1-0

[Event "Catalan Youth-ch 2020"]
[Site "Salou"]
[Date "2020.09.07"]
[Round "5.4"]
[White "Iborra Polo, Eric"]
[Black "Domene Mulyukov, Alexander"]
[Result "0-1"]
[ECO "B22"]
[WhiteElo "1640"]
[BlackElo "1931"]
[Annotator "ChessBase"]
[PlyCount "118"]
[EventDate "2020.09.07"]
[EventType "swiss"]
[EventCountry "ESP"]
[SourceTitle "playchess.com"]
[Source "ChessBase"]
[SourceQuality "1"]
[TimeControl "5400+30"]

1. e4 {[%emt 0:00:00]} c5 {[%emt 0:00:00]} 2. c3 {[%emt 0:00:06]} b6 {[%emt 0:00:00]} 3. d4 {[%emt 0:00:49]} Bb7 {[%emt 0:00:00]} 4. Bd3 {[%emt 0:00:50]} Nf6 {[%emt 0:00:00]} 5. Qe2 {[%emt 0:05:51]} cxd4 {[%emt 0:00:31]} 6. cxd4 {[%emt 0:00:12]} Nc6 {[%emt 0:00:04]} 7. Nf3 {[%emt 0:00:58]} Nb4 {[%emt 0:00:46]} 8. Nc3 {[%emt 0:00:40]} Nxd3+ {[%emt 0:02:11]} 9. Qxd3 {[%emt 0:00:11]} Qc8 {[%emt 0:00:42]} 10. a4 {[%emt 0:10:10]} e6 {[%emt 0:02:27]} 11. e5 {[%emt 0:06:52]} Nd5 {[%emt 0:00:14]} 12. Nxd5 {[%emt 0:00:46]} Bxd5 {[%emt 0:00:07]} 13. Bd2 {[%emt 0:00:45]} Be7 {[%emt 0:03:10]} 14. Rc1 {[%emt 0:01:14]} Qb7 {[%emt 0:00:05]} 15. O-O {[%emt 0:02:11]} g5 {[%emt 0:01:42]} 16. Qc3 {[%emt 0:09:21]} h5 {[%emt 0:03:03]} 17. Ne1 {[%emt 0:02:42]} a5 {[%emt 0:05:37]} 18. f4 {[%emt 0:08:13]} gxf4 {[%emt 0:05:01]} 19. Rxf4 {[%emt 0:00:20]} Bc6 {[%emt 0:01:26]} 20. Qg3 {[%emt 0:03:45]} O-O-O {[%emt 0:02:25]} 21. Rxf7 {[%emt 0:03:03]} Rdg8 {[%emt 0:01:27]} 22. Rg7 {[%emt 0:01:30]} Re8 {[%emt 0:00:06]} 23. Bg5 {[%emt 0:03:02]} Bxg5 24. Qxg5 {[%emt 0:00:15]} Kb8 {[%emt 0:06:45]} 25. b3 {[%emt 0:04:45]} Ref8 {[%emt 0:03:36]} 26. Nd3 {[%emt 0:04:14]} Ka7 {[%emt 0:02:21]} 27. Nf4 {[%emt 0:02:11]} Rf5 {[%emt 0:03:23]} 28. Qg3 {[%emt 0:01:40]} Re8 {[%emt 0:08:27]} 29. Ng6 {[%emt 0:02:10]} Be4 {[%emt 0:06:52]} 30. Ne7 {[%emt 0:04:47]} Rff8 {[%emt 0:01:43]} 31. d5 {[%emt 0:01:15]} Bxd5 {[%emt 0:06:01]} 32. Nxd5 {[%emt 0:00:09]} exd5 {[%emt 0:00:21]} 33. e6 {[%emt 0:00:12]} Rxe6 {[%emt 0:00:12]} 34. Rxd7 {[%emt 0:02:02]} Re1+ {[%emt 0:00:22]} 35. Qxe1 {[%emt 0:00:44]} Qxd7 {[%emt 0:00:06]} 36. Qe5 {[%emt 0:00:54]} Rf5 {[%emt 0:05:46]} 37. Rc7+ {[%emt 0:01:57]} Kb8 {[%emt 0:00:39]} 38. Rxd7+ {[%emt 0:00:33]} Rxe5 {[%emt 0:00:09]} 39. Kf2 {[%emt 0:01:06]} Kc8 {[%emt 0:00:03]} 40. Rf7 {[%emt 0:00:16]} Kd8 {[%emt 0:05:21]} 41. h3 {[%emt 0:01:14]} Ke8 {[%emt 0:17:09]} 42. Rf6 {[%emt 0:02:38]} Kd7 {[%emt 0:01:31]} 43. Rxb6 {[%emt 0:01:31]} d4 {[%emt 0:00:21]} 44. Rb5 {[%emt 0:00:48]} Kd6 {[%emt 0:02:38]} 45. Rxe5 {[%emt 0:00:12]} Kxe5 {[%emt 0:00:07]} 46. Ke2 {[%emt 0:00:21]} h4 {[%emt 0:00:37]} 47. Kf3 {[%emt 0:02:01]} Kd5 {[%emt 0:04:36]} 48. Kf4 {[%emt 0:00:49]} Kc5 {[%emt 0:00:58]} 49. Ke4 {[%emt 0:00:13]} Kb4 {[%emt 0:00:27]} 50. Kxd4 {[%emt 0:00:07]} Kxb3 {[%emt 0:00:02]} 51. Kd3 {[%emt 0:00:06]} Kxa4 {[%emt 0:00:09]} 52. Kc4 {[%emt 0:00:55]} Ka3 {[%emt 0:00:02]} 53. Kc3 {[%emt 0:00:13]} a4 {[%emt 0:00:21]} 54. Kc2 {[%emt 0:00:06]} Kb4 {[%emt 0:00:12]} 55. Kb2 {[%emt 0:00:03]} Kc4 {[%emt 0:00:21]} 56. Ka3 {[%emt 0:00:08]} Kd3 {[%emt 0:00:05]} 57. Kxa4 {[%emt 0:00:15]} Ke3 {[%emt 0:00:05]} 58. Kb3 {[%emt 0:00:12]} Kf2 {[%emt 0:00:06]} 59. Kc2 {[%emt 0:00:11]} Kxg2 {[%emt 0:00:11]} 0-1

[Event "Catalan Youth-ch 2020"]
[Site "Salou"]
[Date "2020.09.07"]
[Round "5.5"]
[White "Travesset Sagre, Jan"]
[Black "Moya Nunez, Pau Salvador"]
[Result "1/2-1/2"]
[ECO "A33"]
[WhiteElo "2093"]
[BlackElo "1990"]
[Annotator "ChessBase"]
[PlyCount "62"]
[EventDate "2020.09.07"]
[EventType "swiss"]
[EventCountry "ESP"]
[SourceTitle "playchess.com"]
[Source "ChessBase"]
[SourceQuality "1"]
[TimeControl "5400+30"]

1. Nf3 {[%emt 0:00:00]} c5 {[%emt 0:00:00]} 2. c4 {[%emt 0:00:01]} Nc6 {[%emt 0:00:00]} 3. d4 {[%emt 0:00:08]} cxd4 {[%emt 0:00:00]} 4. Nxd4 {[%emt 0:00:02]} Nf6 {[%emt 0:00:02]} 5. Nc3 {[%emt 0:00:03]} e6 {[%emt 0:00:07]} 6. g3 {[%emt 0:04:50]} Bb4 {[%emt 0:00:18]} 7. Bg2 {[%emt 0:00:37]} Qb6 {[%emt 0:00:25]} 8. Ndb5 {[%emt 0:11:42]} d5 {[%emt 0:14:29]} 9. O-O {[%emt 0:17:10]} a6 {[%emt 0:17:46]} 10. Be3 {[%emt 0:06:34]} Qd8 {[%emt 0:00:03]} 11. cxd5 {[%emt 0:02:30]} exd5 {[%emt 0:01:08]} 12. Nd4 {[%emt 0:00:09]} O-O {[%emt 0:02:02]} 13. Nxc6 {[%emt 0:03:23]} bxc6 {[%emt 0:00:08]} 14. Rc1 {[%emt 0:00:46]} Bf5 {[%emt 0:19:13]} 15. Na4 {[%emt 0:09:30]} Be4 {[%emt 0:12:51]} 16. Bxe4 {[%emt 0:07:34]} Nxe4 {[%emt 0:01:01]} 17. Rxc6 {[%emt 0:00:26]} Qd7 {[%emt 0:01:47]} 18. Qc2 {[%emt 0:03:02]} Qh3 {[%emt 0:03:22]} 19. Qb3 {[%emt 0:09:18]} Rfe8 {[%emt 0:09:27]} 20. Bd4 {[%emt 0:06:30]} Qxf1+ {[%emt 0:05:00]} 21. Kxf1 {[%emt 0:00:02]} Nd2+ {[%emt 0:00:06]} 22. Kg2 {[%emt 0:00:38]} Nxb3 {[%emt 0:00:04]} 23. axb3 {[%emt 0:00:05]} a5 {[%emt 0:01:40]} 24. Nb6 {[%emt 0:01:50]} Rad8 {[%emt 0:00:57]} 25. e3 {[%emt 0:00:31]} h6 {[%emt 0:00:07]} 26. Kf3 {[%emt 0:00:18]} Re6 {[%emt 0:00:48]} 27. Rc7 {[%emt 0:01:28]} Rdd6 {[%emt 0:02:40]} 28. Rb7 {[%emt 0:00:34]} Rd8 {[%emt 0:00:58]} 29. Rc7 {[%emt 0:00:41]} Rdd6 {[%emt 0:00:37]} 30. Rb7 {[%emt 0:00:07]} Rd8 {[%emt 0:00:21]} 31. Rc7 {[%emt 0:00:37]} Rdd6 {[%emt 0:01:00]} 1/2-1/2

[Event "Catalan Youth-ch 2020"]
[Site "Salou"]
[Date "2020.09.07"]
[Round "5.5"]
[White "Salinas Tomas, Daniel"]
[Black "Muntal Corrales, Arnau"]
[Result "1/2-1/2"]
[ECO "D35"]
[WhiteElo "1979"]
[BlackElo "1812"]
[Annotator "ChessBase"]
[PlyCount "38"]
[EventDate "2020.09.07"]
[EventType "swiss"]
[EventCountry "ESP"]
[SourceTitle "playchess.com"]
[Source "ChessBase"]
[SourceQuality "1"]
[TimeControl "5400+30"]

1. d4 {[%emt 0:00:00]} d5 {[%emt 0:03:13]} 2. Nf3 {[%emt 0:00:07]} Nf6 {[%emt 0:00:46]} 3. c4 {[%emt 0:00:16]} e6 {[%emt 0:00:44]} 4. Nc3 {[%emt 0:00:24]} Be7 {[%emt 0:01:27]} 5. Bf4 {[%emt 0:00:08]} c6 {[%emt 0:02:12]} 6. e3 {[%emt 0:01:04]} O-O {[%emt 0:02:24]} 7. cxd5 {[%emt 0:01:23]} exd5 {[%emt 0:02:51]} 8. Bd3 {[%emt 0:00:29]} Bg4 {[%emt 0:06:57]} 9. h3 {[%emt 0:01:30]} Bh5 {[%emt 0:01:41]} 10. g4 {[%emt 0:02:09]} Bg6 {[%emt 0:01:53]} 11. Ne5 {[%emt 0:00:40]} Bxd3 {[%emt 0:05:37]} 12. Qxd3 {[%emt 0:00:03]} Nbd7 {[%emt 0:03:45]} 13. O-O {[%emt 0:01:47]} Nxe5 {[%emt 0:03:56]} 14. dxe5 {[%emt 0:00:23]} Nd7 {[%emt 0:03:03]} 15. Bh2 {[%emt 0:03:19]} f6 {[%emt 0:07:18]} 16. exf6 {[%emt 0:01:46]} Bxf6 {[%emt 0:04:27]} 17. Ne2 {[%emt 0:06:35]} Be5 {[%emt 0:10:52]} 18. Ng3 {[%emt 0:04:34]} Bxb2 {[%emt 0:01:23]} 19. Rab1 {[%emt 0:06:52]} Be5 {[%emt 0:02:39]} 1/2-1/2

[Event "Catalan Youth-ch 2020"]
[Site "Salou"]
[Date "2020.09.07"]
[Round "5.6"]
[White "Alcala Gonzalez, Cesar"]
[Black "Ramon Herraez, Alex"]
[Result "1-0"]
[ECO "D46"]
[WhiteElo "2026"]
[BlackElo "1864"]
[Annotator "ChessBase"]
[PlyCount "61"]
[EventDate "2020.09.07"]
[EventType "swiss"]
[EventCountry "ESP"]
[SourceTitle "playchess.com"]
[Source "ChessBase"]
[SourceQuality "1"]
[TimeControl "5400+30"]

1. d4 {[%emt 0:00:00]} d5 {[%emt 0:00:00]} 2. c4 {[%emt 0:00:00]} c6 {[%emt 0:00:00]} 3. Nf3 {[%emt 0:00:00]} Nf6 {[%emt 0:00:00]} 4. Nc3 {[%emt 0:00:03]} e6 {[%emt 0:00:05]} 5. e3 {[%emt 0:00:11]} Nbd7 {[%emt 0:01:10]} 6. Bd3 {[%emt 0:00:11]} Be7 {[%emt 0:00:59]} 7. O-O {[%emt 0:01:12]} O-O {[%emt 0:00:07]} 8. b3 {[%emt 0:00:53]} b6 {[%emt 0:02:35]} 9. Bb2 {[%emt 0:00:40]} Bb7 {[%emt 0:00:25]} 10. Qc2 {[%emt 0:00:06]} c5 {[%emt 0:02:05]} 11. cxd5 {[%emt 0:03:48]} exd5 {[%emt 0:03:11]} 12. Ne5 {[%emt 0:04:42]} Rc8 {[%emt 0:05:15]} 13. Nxd7 {[%emt 0:01:01]} Qxd7 {[%emt 0:00:23]} 14. Bf5 {[%emt 0:00:11]} Qd6 {[%emt 0:02:24]} 15. Nb5 {[%emt 0:09:34]} Qb8 {[%emt 0:03:35]} 16. Bxc8 {[%emt 0:00:09]} Rxc8 {[%emt 0:02:43]} 17. Qe2 {[%emt 0:06:11]} a6 {[%emt 0:03:58]} 18. Nc3 {[%emt 0:01:05]} Bd6 {[%emt 0:00:37]} 19. h3 {[%emt 0:01:26]} Re8 {[%emt 0:14:11]} 20. Qd2 {[%emt 0:18:49]} cxd4 {[%emt 0:00:00]} 21. exd4 {[%emt 0:10:11]} Bb4 {[%emt 0:00:00]} 22. a3 {[%emt 0:09:19]} Ne4 {[%emt 0:00:00]} 23. Qd3 {[%emt 0:00:15]} Bxc3 {[%emt 0:00:44]} 24. Bxc3 {[%emt 0:00:07]} Re6 {[%emt 0:00:17]} 25. f3 {[%emt 0:05:25]} Ng5 {[%emt 0:01:57]} 26. Qf5 {[%emt 0:11:00]} Rg6 {[%emt 0:22:05]} 27. h4 {[%emt 0:01:06]} Ne6 {[%emt 0:06:53]} 28. Qe5 {[%emt 0:01:06]} Qd8 {[%emt 0:00:22]} 29. f4 {[%emt 0:02:07]} Rg4 {[%emt 0:07:18]} 30. f5 {[%emt 0:01:08]} Re4 {[%emt 0:00:14]} 31. fxe6 {[%emt 0:00:53]} 1-0

[Event "Catalan Youth-ch 2020"]
[Site "Salou"]
[Date "2020.09.07"]
[Round "5.6"]
[White "Blasco Cardona, Pol"]
[Black "Aleksanyan Israilyan, Nicolas"]
[Result "1/2-1/2"]
[ECO "E38"]
[WhiteElo "1426"]
[BlackElo "1808"]
[Annotator "NA"]
[PlyCount "110"]
[EventDate "2020.09.07"]
[EventType "swiss"]
[EventCountry "ESP"]
[SourceTitle "playchess.com"]
[Source "ChessBase"]
[SourceQuality "1"]
[TimeControl "5400+30"]

1. d4 {[%emt 0:00:00]} e6 {[%emt 0:00:00]} 2. c4 {[%emt 0:00:03]} Nf6 {[%emt 0:00:00]} 3. Nc3 {[%emt 0:00:29]} Bb4 {[%emt 0:00:00]} 4. Qc2 {[%emt 0:01:42]} c5 {[%emt 0:00:00]} 5. e3 {[%emt 0:01:32]} Nc6 {[%emt 0:00:36]} 6. Nf3 {[%emt 0:01:42]} O-O {[%emt 0:03:14]} 7. Bd3 {[%emt 0:05:14]} cxd4 {[%emt 0:01:02]} 8. exd4 {[%emt 0:00:37]} d5 {[%emt 0:00:21]} 9. cxd5 {[%emt 0:06:39]} exd5 {[%emt 0:00:17]} 10. O-O {[%emt 0:08:11]} h6 {[%emt 0:00:26]} 11. h3 {[%emt 0:01:24]} a6 {[%emt 0:01:28]} 12. a3 {[%emt 0:01:25]} Bd6 {[%emt 0:01:48]} 13. Be3 {[%emt 0:02:50]} Be6 {[%emt 0:01:25]} 14. Bf5 {[%emt 0:01:38]} Rc8 {[%emt 0:03:07]} 15. Bxe6 {[%emt 0:09:14]} fxe6 {[%emt 0:00:12]} 16. Qd3 {[%emt 0:02:33]} Ne7 {[%emt 0:11:40]} 17. Nh4 {[%emt 0:08:29]} e5 {[%emt 0:04:21]} 18. dxe5 {[%emt 0:04:28]} Bxe5 {[%emt 0:00:16]} 19. Rac1 {[%emt 0:02:12]} d4 {[%emt 0:01:39]} 20. Nf3 {[%emt 0:02:09]} dxc3 {[%emt 0:01:47]} 21. Nxe5 {[%emt 0:00:50]} cxb2 {[%emt 0:00:23]} 22. Qb3+ {[%emt 0:01:33]} Qd5 {[%emt 0:01:26]} 23. Qxb2 {[%emt 0:01:08]} Nd7 {[%emt 0:05:48]} 24. Nxd7 {[%emt 0:01:41]} Qxd7 {[%emt 0:00:07]} 25. Bc5 {[%emt 0:01:25]} Rfe8 {[%emt 0:02:00]} 26. Bxe7 {[%emt 0:00:43]} Qxe7 {[%emt 0:00:56]} 27. Rb1 {[%emt 0:01:02]} b5 {[%emt 0:00:59]} 28. a4 {[%emt 0:02:10]} bxa4 {[%emt 0:00:35]} 29. Qa2+ {[%emt 0:00:10]} Qe6 {[%emt 0:00:15]} 30. Qxa4 {[%emt 0:00:11]} Rc4 {[%emt 0:01:11]} 31. Qa5 {[%emt 0:01:02]} Re4 {[%emt 0:02:47]} 32. Rb6 {[%emt 0:04:17]} Qc4 {[%emt 0:00:17]} 33. Qxa6 {[%emt 0:01:12]} Qc7 {[%emt 0:00:28]} 34. Rb7 {[%emt 0:01:25]} Qe5 {[%emt 0:00:45]} 35. Qa1 {[%emt 0:00:41]} Qg5 {[%emt 0:00:19]} 36. Qc1 {[%emt 0:00:41]} Qg6 {[%emt 0:00:59]} 37. Qc2 {[%emt 0:00:51]} Qf6 {[%emt 0:00:19]} 38. Qb2 {[%emt 0:00:23]} Qg5 {[%emt 0:00:44]} 39. Rb8 {[%emt 0:00:15]} Qf4 {[%emt 0:00:34]} 40. Rxe8+ {[%emt 0:00:16]} Rxe8 {[%emt 0:00:01]} 41. Rb1 {[%emt 0:00:38]} Qd6 {[%emt 0:00:18]} 42. Qb3+ {[%emt 0:00:24]} Kh8 {[%emt 0:00:18]} 43. Rd1 {[%emt 0:00:18]} Qc7 {[%emt 0:00:27]} 44. Qd3 {[%emt 0:00:06]} Kg8 {[%emt 0:01:18]} 45. Qd5+ {[%emt 0:00:36]} Kh8 {[%emt 0:00:13]} 46. Qd2 {[%emt 0:00:28]} Qb8 {[%emt 0:00:36]} 47. g3 {[%emt 0:00:30]} Rf8 {[%emt 0:00:33]} 48. Qd6 {[%emt 0:00:20]} Qa8 {[%emt 0:01:04]} 49. Qd5 {[%emt 0:00:30]} Qc8 {[%emt 0:01:12]} 50. Qd7 {[%emt 0:01:11]} Qc5 {[%emt 0:00:26]} 51. Qd4 {[%emt 0:00:15]} Qf5 {[%emt 0:00:26]} 52. Kg2 {[%emt 0:00:34]} Qf3+ {[%emt 0:00:15]} 53. Kg1 {[%emt 0:00:22]} Qf5 {[%emt 0:07:01]} 54. Kg2 {[%emt 0:00:27]} Qf3+ {[%emt 0:02:54]} 55. Kg1 {[%emt 0:00:08]} Qf5 {[%emt 0:07:06]} 1/2-1/2

[Event "Catalan Youth-ch 2020"]
[Site "Salou"]
[Date "2020.09.07"]
[Round "5.7"]
[White "Olcina Monells, Jordi"]
[Black "Martin Barcelo, Carles"]
[Result "0-1"]
[ECO "C11"]
[WhiteElo "1633"]
[BlackElo "2202"]
[Annotator "ChessBase"]
[PlyCount "98"]
[EventDate "2020.09.07"]
[EventType "swiss"]
[EventCountry "ESP"]
[SourceTitle "playchess.com"]
[Source "ChessBase"]
[SourceQuality "1"]
[TimeControl "5400+30"]

1. e4 {[%emt 0:00:00]} e6 {[%emt 0:00:23]} 2. d4 {[%emt 0:00:00]} d5 {[%emt 0:00:15]} 3. Nc3 Nf6 4. e5 Nfd7 5. f4 c5 6. Nf3 Nc6 7. Be3 Be7 8. Qd2 O-O 9. Be2 b6 10. O-O {[%emt 0:03:33]} f5 {[%emt 0:02:44]} 11. Kh1 {[%emt 0:30:17]} cxd4 {[%emt 0:00:01]} 12. Nxd4 Nxd4 13. Bxd4 Nc5 14. a3 g5 15. g3 Bb7 16. Kg1 Rc8 17. Rac1 a6 18. Qe3 b5 19. Qf2 Kh8 20. Bf3 h6 21. Ne2 Qd7 22. Be3 Na4 23. b3 Nc3 24. Nxc3 Rxc3 25. Bd4 Rc7 26. Bb2 Bc5 27. Bd4 Bxa3 28. Ra1 Bb4 29. Rfc1 Rfc8 30. Qe3 g4 {[%emt 0:26:20]} 31. Bd1 {[%emt 0:00:00]} Bc3 {[%emt 0:00:30]} 32. Ra2 {[%emt 0:00:00]} Qe7 {[%emt 0:00:30]} 33. Bxc3 {[%emt 0:00:00]} Rxc3 {[%emt 0:00:30]} 34. Qd4 {[%emt 0:00:00]} Rxb3 {[%emt 0:00:30]} 35. cxb3 {[%emt 0:00:00]} Rxc1 {[%emt 0:00:30]} 36. Rc2 {[%emt 0:00:00]} Rxc2 {[%emt 0:57:06]} 37. Bxc2 {[%emt 0:01:02]} Qc7 {[%emt 0:00:57]} 38. Qb4 {[%emt 0:02:29]} Kg8 {[%emt 0:02:36]} 39. Bd3 {[%emt 0:01:11]} Qb6+ {[%emt 0:00:11]} 40. Kf1 {[%emt 1:01:20]} Kf7 {[%emt 0:01:42]} 41. Ke2 {[%emt 0:01:19]} Bc8 {[%emt 0:00:55]} 42. Qc3 {[%emt 0:00:51]} Bd7 {[%emt 0:01:33]} 43. Qb4 {[%emt 0:00:26]} a5 {[%emt 0:00:00]} 44. Qc3 {[%emt 0:01:19]} b4 {[%emt 0:01:00]} 45. Qc1 {[%emt 0:00:39]} Ke7 {[%emt 0:00:59]} 46. Kf1 {[%emt 0:05:08]} Qd4 {[%emt 0:04:24]} 47. Ba6 {[%emt 0:00:47]} Kd8 {[%emt 0:02:02]} 48. Qb1 {[%emt 0:01:41]} Qc3 {[%emt 0:01:10]} 49. Qa2 {[%emt 0:02:03]} Qf3+ {[%emt 0:01:26]} 0-1